fUST/lending_fUST_20241023
["ID","MTS","AMOUNT","RATE_DAILY","PERIOD"]
[340691596,1729687834708,-151.0,0.00016702,2]
[340691597,1729687834718,-151.0,0.00016702,2]
[340691598,1729687834727,-151.0,0.00016702,2]
[340691599,1729687834738,-151.0,0.00016702,2]
[340691600,1729687834747,-151.0,0.00016702,2]
[340691601,1729687834756,-345.54784963,0.00016702,2]
[340691602,1729687834782,-362.531551,0.00016702,2]
[340691661,1729687838915,-876.4561852,0.00016438,2]
[340692135,1729687843718,-147.5438148,0.00016438,2]
[340692137,1729687843728,-151.0,0.00016438,2]
[340692139,1729687843738,-151.0,0.00016438,2]
[340692141,1729687843747,-151.0,0.00016438,2]
[340692143,1729687843757,-71.36166415,0.00016438,2]
[340692147,1729687843785,-79.63833585,0.00016438,2]
[340692149,1729687843795,-151.0,0.00016565,2]
[340692152,1729687843804,-151.0,0.00016565,2]
[340692154,1729687843814,-151.0,0.00016692,2]
[340692156,1729687843824,-151.0,0.00016692,2]
[340692158,1729687843834,-150.91166415,0.00016702,2]
[340692161,1729687843851,-256.762,0.00016702,2]
[340692163,1729687843865,-8560.19089181,0.00016702,2]
[340692165,1729687843875,-1523.34954204,0.00016702,2]
[340692167,1729687843885,-500.0,0.00016712,2]
[340692169,1729687843895,-500.0,0.00016712,2]
[340692171,1729687843905,-500.0,0.00016712,2]
[340692173,1729687843915,-500.0,0.00016712,2]
[340692176,1729687843924,-502.66129948,0.00016712,2]
[340692178,1729687843934,-500.0,0.00016712,2]
[340692180,1729687843944,-686.3,0.00016712,2]
[340692182,1729687843954,-500.0,0.00016712,2]
[340692184,1729687843964,-500.0,0.00016712,2]
[340692186,1729687843973,-500.0,0.00016712,2]
[340692188,1729687843985,-500.0,0.00016712,2]
[340692190,1729687843995,-200.0,0.00016712,2]
[340692192,1729687844004,-500.0,0.00016712,2]
[340692194,1729687844014,-554.79115601,0.00016712,2]
[340692196,1729687844023,-500.0,0.00016712,2]
[340692198,1729687844033,-500.0,0.00016712,2]
[340692199,1729687844043,-585.28,0.00016712,2]
[340692201,1729687844055,-583.76,0.00016712,2]
[340692203,1729687844064,-500.0,0.00016712,2]
[340692204,1729687844074,-500.0,0.00016712,2]
[340692205,1729687844084,-500.0,0.00016712,2]
[340692206,1729687844094,-505.81719264,0.00016712,2]
[340692207,1729687844107,-500.0,0.00016712,2]
[340692208,1729687844117,-502.38883243,0.00016712,2]
[340692209,1729687844126,-515.53,0.00016712,2]
[340692210,1729687844137,-500.0,0.00016712,2]
[340692211,1729687844148,-544.30374047,0.00016712,2]
[340692212,1729687844158,-500.0,0.00016712,2]
[340692213,1729687844168,-500.0,0.00016712,2]
[340692214,1729687844178,-500.0,0.00016712,2]
[340692215,1729687844189,-500.0,0.00016712,2]
[340692216,1729687844200,-500.0,0.00016712,2]
[340692217,1729687844209,-500.0,0.00016712,2]
[340692218,1729687844223,-500.0,0.00016712,2]
[340692219,1729687844235,-500.0,0.00016712,2]
[340692220,1729687844245,-500.0,0.00016712,2]
[340692221,1729687844255,-500.0,0.00016712,2]
[340692222,1729687844265,-1168.28,0.00016712,2]
[340692223,1729687844275,-500.0,0.00016712,2]
[340692224,1729687844285,-500.0,0.00016712,2]
[340692225,1729687844294,-500.0,0.00016712,2]
[340692226,1729687844303,-500.0,0.00016712,2]
[340692227,1729687844313,-151.0,0.00016712,2]
[340692228,1729687844323,-151.0,0.00016712,2]
[340692229,1729687844333,-151.0,0.00016712,2]
[340692230,1729687844343,-151.0,0.00016712,2]
[340692231,1729687844353,-151.0,0.00016712,2]
[340692232,1729687844365,-152.052679,0.00016712,2]
[340692233,1729687844374,-152.052679,0.00016712,2]
[340692234,1729687844384,-152.052679,0.00016712,2]
[340692235,1729687844394,-152.052679,0.00016712,2]
[340692236,1729687844404,-152.052679,0.00016712,2]
[340692237,1729687844415,-152.052676,0.00016712,2]
[340692238,1729687844425,-188.261166,0.00016712,2]
[340692239,1729687844435,-151.0,0.00016712,2]
[340692240,1729687844446,-151.0,0.00016712,2]
[340692241,1729687844456,-151.0,0.00016712,2]
[340692242,1729687844467,-151.0,0.00016712,2]
[340692243,1729687844478,-151.0,0.00016712,2]
[340692244,1729687844488,-151.0,0.00016712,2]
[340692245,1729687844498,-151.0,0.00016712,2]
[340692247,1729687844509,-151.0,0.00016712,2]
[340692250,1729687844520,-151.0,0.00016712,2]
[340692251,1729687844530,-151.0,0.00016712,2]
[340692253,1729687844540,-151.0,0.00016712,2]
[340692255,1729687844551,-151.0,0.00016712,2]
[340692257,1729687844561,-151.0,0.00016712,2]
[340692259,1729687844571,-151.0,0.00016712,2]
[340692260,1729687844581,-500.0,0.00016773,2]
[340692262,1729687844591,-495.8996441,0.00016773,2]
[340692264,1729687844601,-500.0,0.00016773,2]
[340692266,1729687844611,-500.61847689,0.00016773,2]
[340692268,1729687844621,-500.0,0.00016773,2]
[340692269,1729687844631,-151.0,0.00016773,2]
[340692271,1729687844640,-232.20152,0.00016773,2]
[340692272,1729687844649,-87083.4956093,0.0001679,2]
[340692274,1729687844659,-13710.1458784,0.0001679,2]
[340692276,1729687844669,-151.0,0.0001679,2]
[340692278,1729687844679,-999998.0,0.000168,10]
[340692280,1729687844689,-150.112233,0.000168,2]
[340692282,1729687844699,-151.0,0.000168,2]
[340692284,1729687844710,-156.0,0.0001691,2]
[340692286,1729687844720,-506.18595397,0.00016986,2]
[340692288,1729687844730,-500.0,0.00016986,2]
[340692290,1729687844740,-500.0,0.00016986,2]
[340692292,1729687844751,-280.89691287,0.00016986,2]
[340692294,1729687844761,-500.0,0.00016986,2]
[340692296,1729687844772,-686.3,0.00016986,2]
[340692298,1729687844782,-500.0,0.00016986,2]
[340692300,1729687844793,-500.0,0.00016986,2]
[340692302,1729687844804,-385.28597253,0.00016986,2]
[340692304,1729687844815,-500.0,0.00016986,2]
[340692306,1729687844825,-200.0,0.00016986,2]
[340692308,1729687844835,-500.0,0.00016986,2]
[340692310,1729687844846,-500.0,0.00016986,2]
[340692312,1729687844855,-500.0,0.00016986,2]
[340692314,1729687844866,-585.28,0.00016986,2]
[340692316,1729687844876,-583.76,0.00016986,2]
[340692318,1729687844886,-500.0,0.00016986,2]
[340692320,1729687844897,-500.0,0.00016986,2]
[340692321,1729687844908,-500.0,0.00016986,2]
[340692322,1729687844918,-500.0,0.00016986,2]
[340692323,1729687844927,-515.53,0.00016986,2]
[340692324,1729687844937,-500.0,0.00016986,2]
[340692325,1729687844947,-500.0,0.00016986,2]
[340692326,1729687844957,-330.74653293,0.00016986,2]
[340692327,1729687844968,-500.0,0.00016986,2]
[340692328,1729687844978,-500.0,0.00016986,2]
[340692329,1729687844988,-500.0,0.00016986,2]
[340692330,1729687844999,-500.0,0.00016986,2]
[340692331,1729687845010,-500.0,0.00016986,2]
[340692332,1729687845020,-500.0,0.00016986,2]
[340692333,1729687845030,-1168.28,0.00016986,2]
[340692334,1729687845041,-500.0,0.00016986,2]
[340692335,1729687845051,-151.0,0.00016986,2]
[340692336,1729687845061,-151.0,0.00016986,2]
[340692337,1729687845072,-172.390233,0.00016986,2]
[340692338,1729687845082,-1318.56688315,0.00017,2]
[340692339,1729687845092,-35856.65132641,0.00017028,2]
[340692340,1729687845104,-151.0,0.00017028,2]
[340692341,1729687845115,-1000.0,0.00017047,2]
[340692345,1729687845139,-500.0,0.00017173,2]
[340692347,1729687845151,-500.0,0.00017173,2]
[340692349,1729687845162,-500.0,0.00017173,2]
[340692351,1729687845172,-500.0,0.00017173,2]
[340692353,1729687845183,-500.0,0.00017173,2]
[340692355,1729687845195,-500.0,0.00017173,2]
[340692357,1729687845205,-65034.62115299,0.000172,2]
[340692360,1729687845222,-6708.89016279,0.000172,2]
[340692825,1729687852501,2829.07,0.00022,60]
[340692886,1729689034587,-250.0,0.00013699,2]
[340692887,1729689034597,-380.0,0.00013973,2]
[340692888,1729689034608,-274.40238,0.00013973,2]
[340692889,1729689034619,-430.68280461,0.000162,2]
[340692910,1729689038199,-1465.03719539,0.000162,2]
[340692911,1729689038209,-2916.33794444,0.00016754,2]
[340692912,1729689038218,-155.25454257,0.0001709,2]
[340692913,1729689038228,-1000.0,0.000171,2]
[340692914,1729689038239,-156.0,0.0001711,2]
[340692916,1729689038248,-500.0,0.00017173,2]
[340692917,1729689038258,-300.0,0.00017189,2]
[340692919,1729689038267,-244.7228279,0.0001719,2]
[340692920,1729689038279,-12762.45696242,0.0001719,2]
[340692926,1729689039849,-501.98208771,0.0001719,2]
[340692927,1729689039863,-3855.58696007,0.0001719,2]
[340692928,1729689039873,-3249.22710432,0.0001719,2]
[340692944,1729689042867,-497.39999996,0.0001719,2]
[340692947,1729689042923,-101078.57063808,0.0001719,2]
[340692953,1729689042981,-9496.17983969,0.0001719,2]
[340692992,1729689045837,-5386.00000002,0.0001719,2]
[340693017,1729690159064,194.19,0.000172,60]
[340693079,1729690238356,-250.0,0.00013699,2]
[340693080,1729690238366,-361.0,0.00013973,2]
[340693081,1729690238377,-36.57576,0.00013973,2]
[340693102,1729690243112,-224.106501,0.00013973,2]
[340693103,1729690243122,-956.96363081,0.00015,2]
[340693104,1729690243133,-1157.0,0.00015802,2]
[340693105,1729690243143,-1419.68,0.00015802,2]
[340693106,1729690243153,-600.0,0.00015925,2]
[340693107,1729690243162,-982.20491888,0.00015945,2]
[340693108,1729690243173,-300.0,0.00016199,2]
[340693109,1729690243183,-500.0,0.000162,7]
[340693110,1729690243193,-500.0,0.000162,7]
[340693111,1729690243203,-500.0,0.000162,7]
[340693112,1729690243213,-606.84,0.000162,7]
[340693113,1729690243224,-1706.15,0.000163,2]
[340693114,1729690243235,-600.0,0.00016476,2]
[340693115,1729690243248,-3737.43611037,0.00016751,2]
[340693116,1729690243258,-342.27557057,0.00017,4]
[340693117,1729690243267,-1000.0,0.000171,2]
[340693118,1729690243277,-156.0,0.0001711,2]
[340693119,1729690243287,-4348.6811639,0.0001717,2]
[340693120,1729690243297,-500.0,0.00017173,2]
[340693121,1729690243308,-500.0,0.00017173,2]
[340693122,1729690243319,-6816.37624829,0.0001719,2]
[340693123,1729690243331,-163.14855193,0.0001719,2]
[340693124,1729690243342,-4046.69916309,0.0001719,2]
[340693125,1729690243598,-14378.4284418,0.0001719,2]
[340693126,1729690243607,-219870.93800773,0.0001719,2]
[340693134,1729690246005,-12484.88,0.0001719,2]
[340693237,1729691435286,-250.0,0.00013699,2]
[340693238,1729691435295,-400.0,0.00013973,2]
[340693239,1729691435304,-197.232648,0.00013973,2]
[340693240,1729691435314,-1189.257192,0.0001492,2]
[340693241,1729691435326,-950.72938655,0.0001492,2]
[340693242,1729691435336,-273.140299,0.00015958,2]
[340693243,1729691435356,-130.13031445,0.000163,2]
[340693428,1729691440342,-711.2001,0.000163,2]
[340693429,1729691440353,-694.19958555,0.000163,2]
[340693430,1729691440363,-612.0,0.00017,2]
[340693431,1729691440372,-50.49041445,0.00017099,2]
[340693734,1729691443275,-104.76412808,0.00017099,2]
[340693736,1729691443285,-156.0,0.0001711,2]
[340693739,1729691443295,-500.0,0.00017173,2]
[340693741,1729691443305,-500.0,0.00017173,2]
[340693743,1729691443315,-300.0,0.00017179,2]
[340693745,1729691443324,-634.34243125,0.0001718,2]
[340693747,1729691443334,-2245.49344067,0.0001718,2]
[340693749,1729691443346,-284.4418,0.0001718,2]
[340694076,1729691446295,-7510.47731513,0.0001718,2]
[340694078,1729691446304,-163.14855193,0.0001719,2]
[340694080,1729691446314,-1903.02729375,0.0001719,2]
[340694082,1729691446323,-424.3988879,0.0001719,2]
[340694084,1729691446336,-17017.05031482,0.0001719,2]
[340697544,1729692635371,-250.0,0.00013699,2]
[340697545,1729692635381,-380.0,0.00013973,2]
[340697546,1729692635391,-47.0,0.00013973,2]
[340697559,1729692638659,-140.371015,0.00013973,2]
[340697560,1729692638669,-273.1403009,0.00015943,2]
[340697561,1729692638678,-280.92,0.000162,7]
[340697562,1729692638688,-1381.98,0.000164,2]
[340697563,1729692638699,-155.25454253,0.0001707,2]
[340697564,1729692638708,-156.99361092,0.00017073,2]
[340697565,1729692638718,-156.9936109,0.0001708,2]
[340697566,1729692638728,-156.9936109,0.00017087,2]
[340697567,1729692638738,-156.9936109,0.00017093,2]
[340697568,1729692638748,-300.0,0.00017099,2]
[340697569,1729692638759,-791.06023115,0.000171,2]
[340697570,1729692638771,-1202.04815734,0.000171,2]
[340697571,1729692638781,-914.52353104,0.000171,2]
[340697572,1729692638791,-156.9936109,0.000171,2]
[340697573,1729692638801,-1009.7172147,0.000171,2]
[340697574,1729692638811,-156.0,0.0001711,2]
[340697575,1729692638821,-9558.87550448,0.0001716,2]
[340697576,1729692638837,-860.95986895,0.0001716,2]
[340697577,1729692638850,-685.67879207,0.0001716,2]
[340697578,1729692638860,-2625.16358904,0.0001716,2]
[340697583,1729692640471,-5270.01570441,0.0001716,2]
[340697591,1729692643553,-265.67163615,0.0001716,2]
[340697592,1729692643564,-500.0,0.00017173,2]
[340697593,1729692643575,-500.0,0.00017173,2]
[340697594,1729692643585,-500.0,0.00017173,2]
[340697595,1729692643595,-2405.13293634,0.0001718,2]
[340697597,1729692643655,-371.24560504,0.0001718,2]
[340697598,1729692643664,-1868.60228717,0.0001718,2]
[340697599,1729692643678,-171.61044523,0.0001718,2]
[340697600,1729692643688,-181.89166018,0.0001718,2]
[340697601,1729692643699,-587.94195543,0.00017189,2]
[340697602,1729692643708,-407.99461575,0.00017189,2]
[340697603,1729692643718,-433.16468713,0.00017189,2]
[340697604,1729692643729,-3642.02924678,0.0001719,2]
[340697605,1729692643738,-6134.73862346,0.0001719,2]
[340697606,1729692643748,-151.0,0.0001719,2]
[340697607,1729692643758,-151.0,0.0001719,2]
[340697609,1729692643769,-151.0,0.0001719,2]
[340697611,1729692643780,-151.0,0.0001719,2]
[340697613,1729692643789,-151.0,0.0001719,2]
[340697615,1729692643798,-151.136443,0.0001719,2]
[340697617,1729692643808,-151.0,0.0001719,2]
[340697619,1729692643818,-151.0,0.0001719,2]
[340697621,1729692643828,-151.0,0.0001719,2]
[340697623,1729692643838,-227.613064,0.0001719,2]
[340697625,1729692643848,-7734.33992052,0.0001719,2]
[340697640,1729692646383,-2710.1,0.0001719,2]
[340697657,1729693411466,242.50290929,0.0001,2]
[340697687,1729693832566,-176.20742394,0.00012,7]
[340697688,1729693832579,-250.0,0.00013699,2]
[340697689,1729693832591,-400.0,0.00013973,2]
[340697690,1729693832602,-163.532312,0.00013973,2]
[340697691,1729693832614,-300.0,0.00014523,2]
[340697692,1729693832625,-55.26026406,0.00014523,2]
[340697693,1729693832656,-244.73973594,0.00014523,2]
[340697694,1729693832667,-428.26026406,0.00014524,2]
[340697698,1729693838927,-3226.52601105,0.00014524,2]
[340697701,1729693840620,-673.22,0.00014524,2]
[340697705,1729693844582,-2992.43341702,0.00014524,2]
[340697714,1729693846550,-1208.16463986,0.00014524,2]
[340697715,1729693846565,-6737.7,0.00014524,2]
[340697745,1729694656873,250.0,0.00011,2]
[340697916,1729695038099,-250.0,0.00013699,2]
[340697918,1729695038110,-165.65083864,0.00013973,2]
[340698115,1729695039953,-234.34916136,0.00013973,2]
[340698117,1729695039963,-1473.56175014,0.00014131,2]
[340698637,1729695045792,-5752.28996546,0.00014131,2]
[340698639,1729695045802,-4765.95458005,0.00014305,2]
[340698641,1729695045812,-300.0,0.00014424,2]
[340698643,1729695045823,-300.0,0.00014424,2]
[340698645,1729695045833,-167.129795,0.00014515,2]
[340698647,1729695045842,-167.129795,0.00014566,2]
[340698649,1729695045854,-167.129795,0.00014616,2]
[340698651,1729695045868,-167.129795,0.00014667,2]
[340698653,1729695045878,-167.129795,0.00014717,2]
[340698655,1729695045887,-167.129795,0.00014768,2]
[340698657,1729695045897,-167.129795,0.00014818,2]
[340698658,1729695045907,-167.129795,0.00014869,2]
[340698660,1729695045917,-300.0,0.000149,5]
[340698662,1729695045926,-167.129795,0.00014919,2]
[340698665,1729695045935,-167.129795,0.00014969,2]
[340698668,1729695045944,-167.129795,0.0001502,2]
[340698671,1729695045954,-167.129795,0.0001507,2]
[340698673,1729695045963,-167.129795,0.00015121,2]
[340698675,1729695045973,-167.129795,0.00015171,2]
[340698677,1729695045982,-167.129795,0.00015222,2]
[340698679,1729695045991,-167.129795,0.00015272,2]
[340698681,1729695046001,-420.0,0.00015796,2]
[340698683,1729695046010,-3277.8263221,0.00015899,2]
[340698685,1729695046019,-500.0,0.00015899,2]
[340698687,1729695046029,-155.25454253,0.000161,2]
[340698689,1729695046038,-150.169,0.00016138,2]
[340698691,1729695046047,-3200.0,0.00016138,2]
[340698693,1729695046056,-253.936,0.00016158,2]
[340698695,1729695046066,-527.0,0.00016158,2]
[340698697,1729695046075,-1812.0,0.00016158,2]
[340698699,1729695046084,-1155.0,0.00016158,2]
[340698701,1729695046094,-151.0,0.00016158,2]
[340698703,1729695046103,-151.0,0.00016158,2]
[340698705,1729695046113,-151.0,0.00016158,2]
[340698707,1729695046122,-151.0,0.00016158,2]
[340698709,1729695046131,-151.0,0.00016158,2]
[340698711,1729695046141,-183.43463,0.00016158,2]
[340698713,1729695046150,-151.0,0.00016158,2]
[340698715,1729695046159,-151.0,0.00016158,2]
[340698717,1729695046169,-151.0,0.00016158,2]
[340698719,1729695046177,-151.0,0.00016158,2]
[340698721,1729695046187,-151.0,0.00016158,2]
[340698723,1729695046198,-151.0,0.00016158,2]
[340698725,1729695046207,-151.0,0.00016158,2]
[340698728,1729695046217,-151.0,0.00016158,2]
[340698730,1729695046226,-151.0,0.00016158,2]
[340698731,1729695046235,-151.0,0.00016158,2]
[340698733,1729695046245,-151.0,0.00016158,2]
[340698736,1729695046255,-151.0,0.00016158,2]
[340698738,1729695046265,-151.0,0.00016158,2]
[340698740,1729695046275,-151.0,0.00016158,2]
[340698741,1729695046284,-151.0,0.00016158,2]
[340698743,1729695046293,-151.0,0.00016158,2]
[340698745,1729695046303,-174.56713023,0.00016158,2]
[340698747,1729695046313,-500.0,0.000162,7]
[340698749,1729695046322,-500.0,0.000162,7]
[340698751,1729695046331,-500.0,0.000162,7]
[340698753,1729695046340,-500.0,0.000162,7]
[340698755,1729695046350,-500.0,0.000162,7]
[340698757,1729695046359,-500.0,0.000162,7]
[340698759,1729695046368,-500.0,0.000162,7]
[340698761,1729695046377,-500.0,0.000162,7]
[340698763,1729695046388,-635.91,0.000162,7]
[340698765,1729695046397,-151.0,0.000162,2]
[340698767,1729695046406,-151.0,0.000162,2]
[340698769,1729695046415,-151.0,0.000162,2]
[340698771,1729695046425,-151.0,0.000162,2]
[340698774,1729695046434,-151.0,0.000162,2]
[340698775,1729695046443,-151.0,0.000162,2]
[340698778,1729695046453,-151.0,0.000162,2]
[340698779,1729695046462,-151.0,0.000162,2]
[340698781,1729695046471,-151.0,0.000162,2]
[340698783,1729695046480,-151.0,0.000162,2]
[340698785,1729695046490,-151.0,0.000162,2]
[340698787,1729695046501,-151.0,0.000162,2]
[340698789,1729695046510,-151.0,0.000162,2]
[340698792,1729695046521,-151.0,0.000162,2]
[340698794,1729695046530,-151.0,0.000162,2]
[340698796,1729695046541,-151.0,0.000162,2]
[340698798,1729695046552,-151.0,0.000162,2]
[340698800,1729695046563,-151.0,0.000162,2]
[340698802,1729695046572,-151.0,0.000162,2]
[340698804,1729695046581,-151.0,0.000162,2]
[340698806,1729695046591,-151.337081,0.000162,2]
[340698808,1729695046600,-151.0,0.000162,2]
[340698810,1729695046611,-151.0,0.000162,2]
[340698812,1729695046620,-151.0,0.000162,2]
[340698814,1729695046630,-151.0,0.000162,2]
[340698816,1729695046640,-151.0,0.000162,2]
[340698818,1729695046651,-151.0,0.000162,2]
[340698820,1729695046660,-151.0,0.000162,2]
[340698822,1729695046669,-151.0,0.000162,2]
[340698824,1729695046678,-151.0,0.000162,2]
[340698827,1729695046687,-151.0,0.000162,2]
[340698828,1729695046696,-151.0,0.000162,2]
[340698830,1729695046705,-151.0,0.000162,2]
[340698833,1729695046716,-151.0,0.00016205,2]
[340698835,1729695046726,-151.0,0.00016205,2]
[340698837,1729695046736,-202.322048,0.00016205,2]
[340698839,1729695046747,-272.55213,0.00016205,2]
[340698841,1729695046756,-371.34262004,0.00016339,2]
[340698843,1729695046765,-151.0,0.0001634,2]
[340698845,1729695046776,-151.0,0.0001634,2]
[340698847,1729695046788,-152.006739,0.0001634,2]
[340698849,1729695046798,-151.0,0.0001634,2]
[340698851,1729695046809,-151.0,0.0001634,2]
[340698853,1729695046820,-151.0,0.0001634,2]
[340698855,1729695046830,-151.0,0.0001634,2]
[340698858,1729695046840,-151.0,0.0001634,2]
[340698859,1729695046850,-151.0,0.0001634,2]
[340698861,1729695046859,-151.0,0.0001634,2]
[340698864,1729695046871,-151.0,0.0001634,2]
[340698866,1729695046880,-151.0,0.0001634,2]
[340698868,1729695046890,-151.0,0.0001634,2]
[340698870,1729695046899,-151.0,0.0001634,2]
[340698872,1729695046909,-151.0,0.0001634,2]
[340698874,1729695046918,-151.0,0.0001634,2]
[340698876,1729695046928,-151.0,0.0001634,2]
[340698878,1729695046937,-151.0,0.0001634,2]
[340698880,1729695046947,-151.0,0.0001634,2]
[340698882,1729695046957,-151.0,0.0001634,2]
[340698884,1729695046967,-151.0,0.0001634,2]
[340698886,1729695046977,-153.431766,0.0001634,2]
[340698888,1729695046986,-151.0,0.0001634,2]
[340698890,1729695046996,-153.291625,0.0001634,2]
[340698892,1729695047005,-151.0,0.0001634,2]
[340698894,1729695047017,-2031.0361412,0.0001634,2]
[340698896,1729695047027,-151.0,0.0001634,2]
[340698898,1729695047036,-151.0,0.0001634,2]
[340698900,1729695047046,-151.0,0.0001634,2]
[340698902,1729695047056,-1243.78,0.000164,2]
[340698904,1729695047067,-151.0,0.000164,2]
[340698906,1729695047076,-151.0,0.000164,2]
[340698908,1729695047085,-151.0,0.000164,2]
[340698910,1729695047095,-151.0,0.000164,2]
[340698912,1729695047104,-151.0,0.000164,2]
[340698914,1729695047114,-151.0,0.000164,2]
[340698916,1729695047124,-151.0,0.000164,2]
[340698918,1729695047133,-265.56364,0.000164,2]
[340698920,1729695047142,-151.0,0.000164,2]
[340698922,1729695047152,-151.0,0.000164,2]
[340698924,1729695047162,-151.0,0.000164,2]
[340698926,1729695047172,-151.0,0.000164,2]
[340698928,1729695047182,-151.0,0.000164,2]
[340698930,1729695047192,-151.0,0.000164,2]
[340698932,1729695047202,-151.0,0.000164,2]
[340698934,1729695047212,-151.0,0.000164,2]
[340698936,1729695047222,-151.0,0.00016438,2]
[340698938,1729695047231,-287.34067,0.00016438,2]
[340698940,1729695047240,-151.0,0.00016512,2]
[340698942,1729695047251,-151.0,0.00016512,2]
[340698944,1729695047260,-151.0,0.00016512,2]
[340698946,1729695047269,-151.0,0.00016512,2]
[340698948,1729695047278,-183.15,0.00016512,2]
[340698950,1729695047289,-600.0,0.00016512,2]
[340698952,1729695047299,-551.52364286,0.00016612,2]
[340698954,1729695047308,-151.0,0.00016713,2]
[340698956,1729695047318,-155.361776,0.00016789,2]
[340698958,1729695047327,-151.0,0.00016789,2]
[340698960,1729695047337,-151.0,0.00016789,2]
[340698962,1729695047347,-285.78665,0.00016789,2]
[340698964,1729695047357,-151.0,0.00016789,2]
[340698966,1729695047368,-151.0,0.00016789,2]
[340698968,1729695047379,-151.0,0.00016789,2]
[340698970,1729695047389,-151.0,0.00016789,2]
[340698972,1729695047398,-151.0,0.00016789,2]
[340698974,1729695047407,-151.0,0.00016789,2]
[340698976,1729695047417,-151.0,0.00016789,2]
[340698979,1729695047427,-151.0,0.00016789,2]
[340698981,1729695047437,-151.0,0.00016789,2]
[340698983,1729695047447,-151.0,0.00016789,2]
[340698985,1729695047457,-151.0,0.00016789,2]
[340698987,1729695047467,-195.520946,0.0001681,2]
[340698989,1729695047476,-151.0,0.0001681,2]
[340698991,1729695047486,-151.0,0.0001681,2]
[340698993,1729695047496,-151.0,0.0001681,2]
[340698995,1729695047506,-151.0,0.0001681,2]
[340698997,1729695047515,-151.0,0.0001681,2]
[340698999,1729695047525,-151.0,0.0001681,2]
[340699001,1729695047536,-151.0,0.0001684,2]
[340699024,1729695047753,-173.925532,0.0001684,2]
[340699026,1729695047765,-151.0,0.0001684,2]
[340699028,1729695047775,-151.0,0.0001684,2]
[340699030,1729695047789,-236.908078,0.0001684,2]
[340699032,1729695047799,-281.698523,0.0001684,2]
[340699035,1729695047809,-2031.0361412,0.0001684,2]
[340699036,1729695047825,-151.0,0.0001684,2]
[340699038,1729695047834,-151.0,0.0001684,2]
[340699040,1729695047844,-230.638336,0.0001684,2]
[340699043,1729695047854,-3000.0,0.00017,2]
[340699045,1729695047867,-890.43432664,0.00017,17]
[340705725,1729695923529,158.7,0.00011012,2]
[340705773,1729696231916,-250.0,0.00013699,2]
[340705775,1729696231926,-354.25565042,0.00013973,2]
[340705779,1729696231964,-25.74434958,0.00013973,2]
[340705781,1729696231973,-158.322642,0.00013973,2]
[340705783,1729696231983,-511.6064451,0.00015491,2]
[340705785,1729696231994,-1585.3281268,0.0001634,2]
[340705787,1729696232003,-1119.4,0.000164,2]
[340705789,1729696232013,-1151.0,0.00016406,2]
[340705791,1729696232023,-155.25454253,0.0001668,2]
[340705793,1729696232032,-300.0,0.00016735,2]
[340705794,1729696232041,-300.0,0.00016735,2]
[340705796,1729696232051,-172.6133353,0.00016736,2]
[340705798,1729696232060,-7963.73055869,0.00016736,2]